bitfinex-derivatives/quotes_SOLF0:USTF0_20250106
["timestamp","ask_amount","ask_price","bid_price","bid_amount"]
[1736182047972,1.4566,220.69,220.65,2.2658]
[1736182048578,2.2656,220.68,220.62,2.2661]
[1736182048779,1.4566,220.69,220.6,2.92]
[1736182049282,3.7221,220.69,220.57,2.92]
[1736182049687,1.4566,220.69,220.57,2.92]
[1736182050480,1.4566,220.69,220.65,2.2658]
[1736182050886,3.7676,220.7,220.65,2.2658]
[1736182051586,2.2657,220.68,220.62,2.92]
[1736182051782,1.5022,220.7,220.5,2.9388]
[1736182051982,2.2659,220.65,220.56,2.2668]
[1736182052181,2.92,220.69,220.5,2.9388]
[1736182052380,4.3671,220.69,220.51,2.92]
[1736182052686,2.2661,220.64,220.59,2.2664]
[1736182053191,2.2662,220.63,220.57,2.2667]
[1736182053384,4.3671,220.69,220.54,2.92]
[1736182053583,129.32994311,220.69,220.54,2.92]
[1736182053787,2.2665,220.6,220.55,2.2669]
[1736182053991,129.32994311,220.69,220.54,2.92]
[1736182054292,2.2665,220.6,220.54,5.187]
[1736182054490,2.2665,220.6,220.54,2.92]
[1736182055191,2.2665,220.6,220.5,2.9388]
[1736182055192,2.2665,220.6,220.55,2.2669]
[1736182055389,124.96284311,220.67,220.55,2.2669]
[1736182055390,2.2665,220.59,220.55,2.2669]
[1736182055590,124.96284311,220.67,220.51,2.92]
[1736182055789,124.96284311,220.65,220.56,2.2667]
[1736182055989,2.2663,220.61,220.56,2.2667]
[1736182056691,1.4511,220.64,220.56,2.2667]
[1736182056893,1.4511,220.64,220.51,2.92]
[1736182057097,1.4511,220.64,220.55,2.2669]
[1736182058492,2.2672,220.53,220.43,2.2681]
[1736182058687,2.92,220.63,220.41,2.92]
[1736182058895,2.92,220.63,220.42,2.92]
[1736182059091,2.2673,220.51,220.47,2.2676]
[1736182059291,2.92,220.57,220.42,2.92]
[1736182059491,4.3452,220.56,220.42,2.92]
[1736182059697,4.3452,220.56,220.37,2.8766]
[1736182059886,4.3452,220.56,220.38,2.92]
[1736182061489,2.2676,220.49,220.43,2.2681]
[1736182062798,2.2676,220.49,220.44,2.268]
[1736182063697,2.2671,220.53,220.44,2.268]
[1736182063996,124.96284311,220.55,220.4,2.92]
[1736182064194,1.4252,220.56,220.4,2.92]
[1736182064392,2.2673,220.52,220.45,2.2678]
[1736182064590,1.4252,220.56,220.45,2.2678]
[1736182065795,2.2674,220.51,220.46,2.2678]
[1736182067198,1.4252,220.56,220.4,2.92]
[1736182068302,2.2673,220.52,220.45,2.2679]
[1736182068490,1.4252,220.56,220.4,2.92]
[1736182068694,1.4252,220.56,220.36,1.3878]
[1736182068695,1.4252,220.56,220.41,2.92]
[1736182068891,1.4252,220.56,220.45,2.2679]
[1736182069296,2.2674,220.51,220.45,2.2679]
[1736182069597,4.3452,220.56,220.48,2.2676]
[1736182070099,2.2672,220.53,220.41,2.92]
[1736182070296,2.2672,220.53,220.49,2.2675]
[1736182070490,1.4252,220.56,220.41,2.92]
[1736182070700,2.267,220.55,220.41,2.92]
[1736182071100,1.4252,220.56,220.41,2.92]
[1736182071302,1.5324,220.61,220.41,2.92]
[1736182071496,1.5324,220.61,220.54,2.2669]
[1736182072098,1.5324,220.61,220.5,2.92]
[1736182072493,3.7988,220.61,220.56,2.2667]
[1736182074100,1.5324,220.61,220.5,2.92]
[1736182074295,2.2667,220.57,220.5,2.92]
[1736182074493,1.5324,220.61,220.5,2.92]
[1736182074895,2.2666,220.59,220.54,2.267]
[1736182075296,124.96284311,220.59,220.54,2.267]
[1736182076203,124.96284311,220.59,220.5,2.92]
[1736182076510,124.96284311,220.59,220.58,2.2666]
[1736182076701,156.23536391,220.6,220.5,2.92]
[1736182076901,124.96284311,220.61,220.5,2.92]
[1736182077205,2.267,220.54,220.46,2.92]
[1736182077401,2.92,220.6,220.5,2.2673]
[1736182077606,124.96284311,220.58,220.46,2.92]
[1736182078202,124.96284311,220.58,220.4,25.89111935]
[1736182078402,2.2669,220.56,220.51,2.2673]
[1736182078605,124.96284311,220.56,220.51,2.2673]
[1736182079403,2.2669,220.55,220.51,2.2673]
[1736182079707,124.96284311,220.56,220.33,4.5382]
[1736182079908,1.4094,220.54,220.36,4.3437]
[1736182080207,2.2673,220.51,220.47,2.2677]
[1736182080402,1.4094,220.54,220.43,2.92]
[1736182080804,2.2672,220.53,220.49,2.2675]
[1736182081898,128.63924311,220.54,220.5,2.2674]
[1736182082101,124.96284311,220.54,220.43,2.92]
[1736182082606,127.22964311,220.57,220.52,2.2672]
[1736182083605,124.96284311,220.57,220.54,2.267]
[1736182083802,124.96284311,220.57,220.5,2.92]
[1736182084003,124.96284311,220.57,220.51,2.92]
[1736182084198,124.96284311,220.57,220.56,2.2668]
[1736182084404,124.96284311,220.6,220.51,2.92]
[1736182084909,124.96284311,220.6,220.59,2.2665]
[1736182085608,124.96284311,220.63,220.62,2.2662]
[1736182086408,124.96284311,220.68,220.67,2.2657]
[1736182087108,122.69124311,220.68,220.67,2.2657]
[1736182087305,156.23536391,220.73,220.66,2.92]
[1736182088298,157.72706391,220.77,220.66,2.92]
[1736182089213,1.4917,220.77,220.72,2.2651]
[1736182089406,1.4917,220.77,220.72,5.1851]
[1736182090305,1.4917,220.77,220.73,2.265]
[1736182090506,1.4917,220.77,220.58,1.3927]
[1736182090710,1.4917,220.77,220.59,2.92]
[1736182091012,0.71382888,220.76,220.59,2.92]
[1736182091308,156.23536391,220.75,220.59,2.92]
[1736182091501,2.2652,220.72,220.67,2.2657]
[1736182091909,157.72706391,220.77,220.67,2.2657]
[1736182092203,2.265,220.74,220.66,2.92]
[1736182092410,157.72706391,220.77,220.66,2.92]
[1736182092600,2.2653,220.71,220.66,2.92]
[1736182093103,7.95037267,220.76,220.58,1.3927]
[1736182093309,7.95037267,220.76,220.59,2.92]
[1736182093511,156.23536391,220.76,220.68,2.2655]
[1736182094104,2.265,220.73,220.68,2.2655]
[1736182094311,1.4917,220.77,220.67,2.2656]
[1736182094510,0.71374917,220.76,220.66,2.92]
[1736182094909,0.71374917,220.76,220.44,69.976]
[1736182095212,2.2662,220.63,220.45,5.3012352]
[1736182095504,2.92,220.69,220.45,5.3012352]
[1736182095712,3.66012797,220.68,220.45,5.3012352]
[1736182095902,0.71322797,220.67,220.45,5.3012352]
[1736182096102,2.14782797,220.67,220.54,2.2669]
[1736182096305,0.71322797,220.66,220.43,2.92]
[1736182096503,152.85136106,220.66,220.43,2.92]
[1736182096707,8.66155,220.65,220.43,2.92]
[1736182096906,0.71322797,220.64,220.43,2.92]
[1736182097107,2.2669,220.55,220.43,2.92]
[1736182097608,2.2669,220.55,220.48,2.2676]
[1736182097815,2.2669,220.55,220.43,2.92]
[1736182098211,125.01530607,220.61,220.43,2.92]
[1736182098407,2.2668,220.56,220.49,2.2674]
[1736182098611,125.01530607,220.61,220.49,2.2674]
[1736182099312,125.01530607,220.61,220.45,2.92]
[1736182099909,125.01530607,220.6,220.45,2.92]
[1736182100214,125.01530607,220.6,220.44,2.92]
[1736182100415,125.01530607,220.6,220.49,2.2675]
[1736182100715,125.01530607,220.6,220.44,2.92]
[1736182100911,2.2668,220.56,220.52,2.2672]
[1736182101118,17.37721393,220.59,220.44,2.92]
[1736182101513,3.7125,220.58,220.53,2.2671]
[1736182102615,1.4458,220.58,220.44,2.92]
[1736182103015,1.5317,220.57,220.44,2.92]
[1736182103416,1.4798,220.56,220.44,2.92]
[1736182103614,1.4798,220.56,220.52,2.2672]
[1736182104516,2.2671,220.54,220.44,2.92]
[1736182104718,17.37721393,220.55,220.44,2.92]
[1736182105521,1.4798,220.56,220.44,2.92]
[1736182106020,2.2669,220.55,220.47,2.2677]
[1736182106223,1.4798,220.56,220.44,2.92]
[1736182106422,1.4798,220.56,220.45,2.92]
[1736182107329,2.267,220.54,220.45,2.92]
[1736182107513,2.267,220.54,220.41,17.37721393]
[1736182107713,2.267,220.54,220.42,2.92]
[1736182108225,2.267,220.54,220.48,2.2675]
[1736182108915,2.267,220.54,220.42,2.92]
[1736182109116,1.4798,220.56,220.42,2.92]
[1736182109321,1.4798,220.56,220.47,2.2676]
[1736182109522,2.2672,220.53,220.47,2.2676]
[1736182109712,2.2672,220.53,220.42,2.92]
[1736182110814,1.4798,220.56,220.47,2.2676]
[1736182111022,1.4798,220.56,220.42,2.92]
[1736182111220,17.37721393,220.54,220.45,2.2679]
[1736182111730,2.2675,220.5,220.45,2.2679]
[1736182111921,2.2675,220.5,220.42,2.92]
[1736182112121,2.2675,220.5,220.46,2.2678]
[1736182112815,17.37721393,220.54,220.45,2.2679]
[1736182112816,2.2675,220.49,220.45,2.2679]
[1736182113223,17.37721393,220.5,220.33,17.37721393]
[1736182113423,17.37721393,220.5,220.35,2.92]
[1736182113629,17.37721393,220.5,220.33,17.37721393]
[1736182113825,17.37721393,220.5,220.35,2.92]
[1736182114131,17.37721393,220.5,220.36,2.92]
[1736182114328,17.37721393,220.5,220.33,17.37721393]
[1736182114329,1.4284,220.49,220.37,2.92]
[1736182115325,125.01530607,220.51,220.37,20.29721393]
[1736182115624,2.2673,220.51,220.37,20.29721393]
[1736182116132,127.28250607,220.53,220.41,2.2683]
[1736182116329,2.2672,220.53,220.37,20.29721393]
[1736182116623,146.15243954,220.56,220.45,17.37721393]
[1736182116830,146.15243954,220.56,220.55,2.2669]
[1736182117226,1.4798,220.56,220.55,2.2669]
[1736182117623,17.37721393,220.61,220.55,2.2669]
[1736182118425,3.6949,220.6,220.56,2.2668]
[1736182118625,3.6949,220.6,220.52,2.92]
[1736182119022,2.2665,220.59,220.52,2.92]
[1736182119427,2.2665,220.59,220.53,2.92]
[1736182120026,1.4284,220.6,220.53,2.92]
[1736182120221,17.37721393,220.57,220.49,2.92]
[1736182120932,2.2669,220.55,220.5,2.2673]
[1736182121130,126.44370607,220.6,220.49,2.92]
[1736182121529,2.2665,220.59,220.54,2.267]
[1736182121731,2.2665,220.59,220.49,2.92]
[1736182122124,2.2667,220.58,220.53,2.2671]
[1736182122325,1.4284,220.6,220.45,17.37721393]
[1736182122529,1.4284,220.6,220.46,2.92]
[1736182123030,10.86064617,220.57,220.46,2.92]
[1736182123430,2.2668,220.56,220.51,2.2672]
[1736182123736,2.2668,220.56,220.46,2.92]
[1736182124828,2.2668,220.56,220.51,2.2672]
[1736182125029,10.86064617,220.57,220.46,2.92]
[1736182125332,13.12734617,220.57,220.46,2.92]
[1736182126034,13.12734617,220.57,220.44,10.86064617]
[1736182126230,13.12734617,220.57,220.45,2.92]
[1736182126531,10.86064617,220.57,220.53,2.2671]
[1736182127735,125.01530607,220.58,220.47,10.86064617]
[1736182127940,125.01530607,220.58,220.55,2.2669]
[1736182128237,125.01530607,220.57,220.55,2.2669]
[1736182130129,125.01530607,220.56,220.55,2.2669]
[1736182130938,156.23536391,220.56,220.55,2.2669]
[1736182131742,126.06564473,220.57,220.53,2.92]
[1736182131932,126.06564473,220.57,220.56,2.2668]
[1736182133835,126.06564473,220.57,220.5,2.92]
[1736182134741,126.06564473,220.56,220.5,2.92]
[1736182135134,128.33254473,220.56,220.52,2.2672]
[1736182135530,126.06564473,220.56,220.5,2.92]
[1736182135731,206.34551238,220.61,220.51,10.86064617]
[1736182136337,206.34551238,220.61,220.59,2.2664]
[1736182136736,126.00776721,220.58,220.57,2.92]
[1736182137145,126.00776721,220.58,220.57,5.1867]
[1736182137345,126.00776721,220.6,220.57,2.92]
[1736182137642,126.00776721,220.6,220.59,2.2665]
[1736182138238,126.00776721,220.61,220.57,2.92]
[1736182138441,126.00776721,220.61,220.6,2.2664]
[1736182139539,126.00776721,220.64,220.61,2.2662]
[1736182139748,126.00776721,220.64,220.57,2.92]
[1736182140640,126.00776721,220.64,220.62,2.2662]
[1736182141345,126.00776721,220.65,220.62,2.2662]
[1736182142236,126.00776721,220.65,220.57,2.92]
[1736182142442,10.86064617,220.63,220.49,10.86064617]
[1736182142744,10.86064617,220.6,220.5,2.92]
[1736182143151,10.86064617,220.6,220.46,10.86064617]
[1736182143444,4.3659,220.59,220.49,2.92]
[1736182143648,2.2668,220.56,220.5,2.2673]
[1736182143952,10.86064617,220.57,220.42,51.86]
[1736182144153,10.86064617,220.54,220.43,2.92]
[1736182144446,2.2672,220.52,220.42,51.86]
[1736182144846,10.86064617,220.51,220.42,2.92]
[1736182145242,2.2676,220.48,220.42,5.1881]
[1736182145942,10.86064617,220.48,220.34,10.86064617]
[1736182146147,10.86064617,220.48,220.35,2.92]
[1736182146352,10.86064617,220.48,220.36,2.92]
[1736182146649,2.268,220.44,220.38,2.2686]
[1736182147545,2.2679,220.46,220.39,2.2685]
[1736182148049,126.00776721,220.47,220.39,2.2685]
[1736182148453,126.00776721,220.47,220.34,10.86064617]
[1736182148646,126.00776721,220.47,220.37,10.86064617]
[1736182148946,126.00776721,220.47,220.4,2.2684]
[1736182149250,126.00776721,220.47,220.37,10.86064617]
[1736182149551,2.2683,220.41,220.33,2.92]
[1736182150045,2.2683,220.42,220.35,2.2689]
[1736182150247,10.86064617,220.42,220.3,13.78064617]
[1736182150448,10.86064617,220.39,220.29,2.92]
[1736182150656,2.2689,220.36,220.29,5.1895]
[1736182150844,4.3032,220.38,220.29,2.92]
[1736182151049,10.86064617,220.36,220.24,2.92]
[1736182151255,10.86064617,220.33,220.25,2.2699]
[1736182151449,10.86064617,220.33,220.19,62.74064617]
[1736182151648,10.86064617,220.33,220.2,2.92]
[1736182151849,13.12994617,220.33,220.2,2.92]
[1736182152051,10.86064617,220.36,220.21,2.92]
[1736182152352,10.86064617,220.36,220.23,10.86064617]
[1736182152557,10.86064617,220.36,220.26,2.2698]
[1736182152558,2.2692,220.33,220.26,2.2698]
[1736182153745,2.269,220.35,220.27,2.2698]
[1736182153945,2.269,220.35,220.23,2.92]
[1736182154149,4.3032,220.38,220.24,17.41347318]
[1736182154349,4.3032,220.38,220.31,2.2693]
[1736182154552,4.3032,220.38,220.24,17.41347318]
[1736182154553,4.3032,220.38,220.29,2.92]
[1736182155146,4.3032,220.38,220.33,2.2691]
[1736182155355,4.3032,220.38,220.29,2.92]
[1736182156353,4.3032,220.38,220.29,5.1895]
[1736182156553,4.3032,220.38,220.29,2.92]
[1736182156857,6.5719,220.38,220.29,2.92]
[1736182157347,4.3032,220.38,220.29,2.92]
[1736182158352,4.3032,220.38,220.33,2.2691]
[1736182158552,4.3032,220.38,220.29,2.92]
[1736182159351,4.3032,220.38,220.25,2.92]
[1736182159553,17.41347318,220.36,220.25,2.92]
[1736182159754,2.2691,220.34,220.28,2.2697]
[1736182160557,17.41347318,220.36,220.28,2.2697]
[1736182160854,2.2692,220.33,220.28,2.2697]
[1736182161158,17.41347318,220.36,220.23,2.92]
[1736182161360,7.2232,220.38,220.23,20.33347318]
[1736182161854,2.2689,220.36,220.31,2.2693]
[1736182162060,7.2232,220.38,220.23,20.33347318]
[1736182163460,2.269,220.35,220.3,2.2694]
[1736182164962,2.2692,220.33,220.25,2.92]
[1736182165363,7.2232,220.38,220.28,2.2696]
[1736182165563,2.2693,220.33,220.28,2.2696]
[1736182165866,17.41347318,220.36,220.28,2.2696]
[1736182166054,17.41347318,220.36,220.19,69.29347318]
[1736182166257,2.2695,220.3,220.25,2.27]
[1736182167067,17.41347318,220.36,220.2,2.92]
[1736182167566,2.2691,220.34,220.28,2.2696]
[1736182167765,2.2691,220.34,220.22,17.41347318]
[1736182168166,17.41347318,220.36,220.22,17.41347318]
[1736182168567,17.41347318,220.36,220.2,2.92]
[1736182168865,17.41347318,220.36,220.21,2.92]
[1736182169466,2.2694,220.31,220.25,2.2699]
[1736182170364,2.2694,220.31,220.24,2.2701]
[1736182170560,2.2695,220.3,220.21,2.92]
[1736182170765,17.41347318,220.36,220.21,2.92]
[1736182170962,17.41347318,220.36,220.24,2.27]
[1736182171561,17.41347318,220.36,220.22,17.41347318]
[1736182171765,2.92,220.37,220.22,17.41347318]
[1736182171970,2.92,220.37,220.29,2.2695]
[1736182172767,2.2689,220.36,220.32,2.2692]
[1736182172968,4.3032,220.38,220.27,2.92]
[1736182173166,4.3032,220.38,220.28,2.92]
[1736182173371,4.3032,220.38,220.32,2.2692]
[1736182173567,4.3032,220.38,220.22,20.26627318]
[1736182173769,4.3032,220.38,220.19,51.88]
[1736182173977,4.3032,220.38,220.22,17.41347318]
[1736182174369,17.41347318,220.36,220.2,2.92]
[1736182174875,2.92,220.35,220.2,2.92]
[1736182175078,2.2695,220.3,220.2,13.80510753]
[1736182175778,2.2695,220.3,220.25,2.27]
[1736182176174,2.2695,220.3,220.24,2.2701]
[1736182177479,2.2695,220.3,220.25,2.27]
[1736182177676,2.2697,220.28,220.22,2.92]
[1736182178182,10.88510753,220.3,220.22,2.92]
[1736182178772,10.88510753,220.3,219.9,25.0824125]
[1736182178977,3.0593,220.29,220.15,10.88510753]
[1736182179184,3.0593,220.29,220.16,2.92]
[1736182179482,1.5299,220.28,220.16,2.92]
[1736182179978,2.2702,220.23,220.18,2.2707]
[1736182180284,10.88510753,220.27,220.16,2.92]
[1736182180479,127.53766721,220.28,220.18,10.88510753]
[1736182180989,126.00776721,220.28,220.23,2.2702]
[1736182181174,126.00776721,220.28,220.21,10.88510753]
[1736182181481,126.00776721,220.28,220.22,2.92]
[1736182181885,126.00776721,220.3,220.22,2.92]
[1736182182885,126.00776721,220.3,220.25,2.2699]
[1736182183281,126.00776721,220.3,220.29,2.2696]
[1736182184280,126.00776721,220.31,220.28,2.92]
[1736182184484,126.00776721,220.31,220.3,2.2695]
[1736182184792,126.00776721,220.32,220.28,2.92]
[1736182184991,126.00776721,220.32,220.31,2.2694]
[1736182185489,126.00776721,220.33,220.3,10.88510753]
[1736182185689,126.00776721,220.33,220.32,2.2693]
[1736182186286,157.50970901,220.35,220.32,2.2693]
[1736182186287,126.00776721,220.34,220.32,2.2693]
[1736182186491,126.00776721,220.34,220.33,2.2692]
[1736182187987,155.23670901,220.35,220.34,2.2691]
[1736182188295,150.69880901,220.37,220.32,17.40077459]
[1736182188487,117.28710591,220.37,220.36,19.66967459]
[1736182189190,2.9769,220.49,220.36,17.40077459]
[1736182189392,2.9769,220.49,220.37,2.92]
[1736182189583,11.63281411,220.54,220.4,17.40077459]
[1736182189787,9.36571411,220.54,220.4,17.40077459]
[1736182189985,1.3963,220.54,220.4,17.40077459]
[1736182190185,1.3963,220.54,220.37,2.92]
[1736182190392,9.36571411,220.54,220.41,2.2683]
[1736182190694,2.2676,220.48,220.41,2.2683]
[1736182190895,2.2676,220.48,220.42,2.2682]
[1736182191091,1.5148,220.49,220.37,2.92]
[1736182193295,1.64525,220.5,220.46,2.2677]
[1736182193491,1.64525,220.5,220.45,2.92]
[1736182193800,1.64525,220.5,220.4,17.40077459]
[1736182193801,1.64525,220.5,220.46,2.92]
[1736182194100,0.22795,220.5,220.48,2.2676]
[1736182196199,0.22795,220.5,220.49,2.2675]
[1736182197398,2.2662,220.62,220.56,2.2668]
[1736182197598,1.4807,220.63,220.54,2.94]
[1736182197896,1.4807,220.63,220.59,2.2664]
[1736182198394,1.4807,220.63,220.62,2.2662]
[1736182198700,1.5218,220.65,220.61,2.94]
[1736182198900,1.5218,220.65,220.63,2.266]
[1736182199597,1.4763,220.69,220.63,2.266]
[1736182199798,3.7418,220.69,220.61,2.94]
[1736182200000,3.7418,220.69,220.62,2.2662]
[1736182200196,1.4763,220.69,220.62,2.2662]
[1736182200399,1.4763,220.69,220.61,2.94]
[1736182200799,2.2659,220.66,220.61,2.94]
[1736182201201,1.4763,220.69,220.61,2.94]
[1736182202295,1.4763,220.69,220.67,2.2656]
[1736182202504,1.4636,220.71,220.67,2.94]
[1736182203001,1.5205,220.76,220.67,2.94]
[1736182203604,2.2649,220.75,220.69,2.2654]
[1736182203900,1.5205,220.76,220.67,2.94]
[1736182204098,1.5205,220.76,220.68,17.40077459]
[1736182204806,1.5205,220.76,220.69,2.94]
[1736182205403,2.2649,220.75,220.69,5.2054]
[1736182205606,1.5205,220.76,220.69,2.94]
[1736182205908,2.2651,220.73,220.69,2.94]
[1736182206105,1.5205,220.76,220.69,2.94]
[1736182206409,2.2649,220.75,220.7,2.2653]
[1736182207501,1.5205,220.76,220.69,2.94]
[1736182208407,1.4923,220.78,220.69,2.94]
[1736182208707,1.4923,220.78,220.75,2.2648]
[1736182210007,1.5371,220.84,220.69,2.94]
[1736182210208,3.0724,220.84,220.69,2.94]
[1736182210705,5.3364,220.84,220.73,2.265]
[1736182210906,5.3364,220.84,220.69,2.94]
[1736182211108,3.0724,220.84,220.69,2.94]
[1736182211303,2.2641,220.83,220.77,2.2646]
[1736182211601,2.2641,220.83,220.77,2.94]
[1736182211804,3.0724,220.84,220.67,17.40077459]
[1736182212011,17.40077459,220.78,220.62,21.33440613]
[1736182212211,17.40077459,220.74,220.64,2.94]
[1736182212403,17.40077459,220.78,220.64,2.94]
[1736182213001,17.40077459,220.78,220.69,2.2655]
[1736182213002,2.2649,220.75,220.69,2.2655]
[1736182213208,17.40077459,220.78,220.65,2.94]
[1736182213503,2.2649,220.75,220.7,2.2653]
[1736182213812,17.40077459,220.78,220.7,2.2653]
[1736182214009,17.40077459,220.78,220.65,2.94]
[1736182214010,1.4316,220.77,220.65,2.94]
[1736182214206,2.2649,220.74,220.7,2.2653]
[1736182214412,1.4316,220.77,220.7,2.2653]
[1736182214815,1.4316,220.77,220.65,2.94]
[1736182215007,2.2648,220.76,220.65,2.94]
[1736182215407,2.2648,220.76,220.71,2.2653]
[1736182216209,2.2648,220.76,220.68,2.2655]
[1736182216413,2.2648,220.76,220.65,2.94]
[1736182217114,2.2648,220.76,220.72,2.2651]
[1736182217411,1.4316,220.77,220.65,2.94]
[1736182217612,3.0724,220.84,220.68,17.40077459]
[1736182217808,3.0724,220.84,220.72,17.40077459]
[1736182218117,3.0724,220.84,220.73,2.94]
[1736182218710,2.2641,220.82,220.73,2.94]
[1736182218910,3.0724,220.84,220.76,2.2647]
[1736182219116,3.0724,220.84,220.73,2.94]
[1736182219616,3.0724,220.84,220.78,2.2645]
[1736182220215,5.3364,220.84,220.78,2.2645]
[1736182220417,5.3364,220.84,220.79,2.2644]
[1736182220613,3.0724,220.84,220.73,2.94]
[1736182221212,1.4561,220.86,220.73,2.94]
[1736182221421,1.4561,220.86,220.76,17.40077459]
[1736182222222,1.4561,220.86,220.83,2.2639]
[1736182222425,1.4561,220.86,220.8,2.94]
[1736182222718,2.9095,220.9,220.87,2.2636]
[1736182223111,2.9095,220.9,220.8,20.34077459]
[1736182223312,2.9095,220.9,220.83,2.264]
[1736182223512,1.5167,220.94,220.8,20.34077459]
[1736182223921,1.5167,220.94,220.91,2.2631]
[1736182224118,2.9354,220.98,220.88,2.94]
[1736182224319,1.5167,221.01,220.88,2.94]
[1736182224516,2.2624,221.0,220.95,2.2628]
[1736182224724,1.5167,221.01,220.88,20.34077459]
[1736182224918,1.5167,221.01,220.88,2.94]
[1736182225223,17.40077459,220.99,220.85,2.94]
[1736182225428,17.40077459,220.99,220.86,2.94]
[1736182226021,2.263,220.93,220.88,2.2635]
[1736182226627,17.40077459,220.99,220.89,2.2633]
[1736182226628,2.2629,220.95,220.89,2.2633]
[1736182226927,2.2629,220.95,220.86,2.94]
[1736182227128,2.2623,221.0,220.9,2.2633]
[1736182227426,1.5167,221.01,220.89,17.40077459]
[1736182227617,1.5167,221.01,220.95,2.2627]
[1736182228222,1.5167,221.01,220.96,2.2626]
[1736182228421,1.5167,221.01,220.94,3.02]
[1736182228920,1.5167,221.01,220.96,2.2627]
[1736182229627,1.5167,221.01,220.97,2.2625]
[1736182229931,1.5167,221.01,220.94,3.02]
[1736182230625,1.5167,221.01,220.98,2.2625]
[1736182230827,2.9354,221.02,220.98,2.2625]
[1736182231422,2.9354,221.02,220.94,3.02]
[1736182231623,1.482,221.02,220.94,3.02]
[1736182232729,1.5272,221.08,220.94,3.02]
[1736182232928,17.40077459,221.07,220.94,3.02]
[1736182233130,17.40077459,221.07,220.95,2.2628]
[1736182233320,17.40077459,221.03,220.86,6.21361412]
[1736182233526,17.40077459,220.99,220.9,3.02]
[1736182233727,17.40077459,220.99,220.86,6.21361412]
[1736182233728,17.40077459,220.91,220.86,6.21361412]
[1736182233923,17.40077459,220.87,220.84,6.21656088]
[1736182234126,17.40077459,220.87,220.83,18.64084237]
[1736182234532,2.2639,220.84,220.83,18.64084237]
[1736182234937,2.2638,220.86,220.83,18.64084237]
[1736182235127,3.02,220.9,220.78,3.02]
[1736182235526,2.264,220.83,220.78,3.02]
[1736182235732,17.40077459,220.87,220.78,3.02]
[1736182236131,2.2639,220.85,220.78,3.02]
[1736182236331,17.40077459,220.87,220.78,3.02]
[1736182237533,2.2639,220.84,220.78,5.2844]
[1736182237732,17.40077459,220.87,220.78,3.02]
[1736182238834,2.2639,220.84,220.79,2.2644]
[1736182241026,2.2637,220.87,220.82,2.2641]
[1736182241431,126.76472446,220.89,220.78,3.02]
[1736182242234,2.2641,220.83,220.78,3.02]
[1736182242434,17.40077459,220.87,220.78,3.02]
[1736182243234,2.264,220.84,220.8,2.2643]
[1736182244237,2.264,220.84,220.79,2.2644]
[1736182244438,2.264,220.83,220.79,2.2644]
[1736182245033,17.40077459,220.83,220.55,6.8006]
[1736182245233,17.40077459,220.83,220.64,17.40077459]
[1736182245437,17.40077459,220.83,220.68,17.40077459]
[1736182245643,2.2642,220.81,220.76,2.2646]
[1736182245840,2.9369,220.86,220.69,3.02]
[1736182246042,17.40077459,220.83,220.68,17.40077459]
[1736182246244,2.2647,220.77,220.69,3.02]
[1736182246939,17.40077459,220.83,220.69,3.02]
[1736182246940,2.2645,220.79,220.69,3.02]
[1736182247444,2.2645,220.79,220.74,2.2649]
[1736182247746,2.2646,220.78,220.69,3.02]
[1736182247940,17.40077459,220.83,220.72,2.2651]
[1736182248542,17.40077459,220.83,220.73,2.265]
[1736182249545,17.40077459,220.83,220.64,17.40077459]